[Event "*** Titled Tuesday 3|2 Blitz"]
[Site "Chess.com"]
[Date "2017.05.02"]
[Round "5"]
[White "stefanodinn"]
[Black "Lawliet64"]
[Result "1-0"]
[WhiteElo "2230"]
[BlackElo "2021"]
[TimeControl "180+2"]
[EndTime "14:04:56 PDT"]
[Termination "stefanodinn won on time"]

1. e4 {[%clk 0:03:00.8]} 1... c5 {[%clk 0:02:55.6]} 2. Nc3 {[%clk 0:02:57.2]}
2... d6 {[%clk 0:02:48.8]} 3. Nf3 {[%clk 0:02:37.9]} 3... Nf6 {[%clk 0:02:47.8]}
4. d4 {[%clk 0:02:38.2]} 4... cxd4 {[%clk 0:02:47.2]} 5. Nxd4 {[%clk 0:02:39.3]}
5... a6 {[%clk 0:02:48]} 6. Bg5 {[%clk 0:02:38.3]} 6... e6 {[%clk 0:02:40.2]} 7.
f4 {[%clk 0:02:37.6]} 7... Nbd7 {[%clk 0:02:36.3]} 8. Qf3 {[%clk 0:02:37.6]}
8... Be7 {[%clk 0:02:33.3]} 9. O-O-O {[%clk 0:02:37.8]} 9... Qc7 {[%clk
0:02:28.7]} 10. g4 {[%clk 0:02:28.5]} 10... O-O {[%clk 0:02:29.6]} 11. Bxf6
{[%clk 0:02:12.9]} 11... Nxf6 {[%clk 0:02:10.9]} 12. g5 {[%clk 0:02:13.5]} 12...
Nd7 {[%clk 0:02:11.1]} 13. h4 {[%clk 0:02:12.6]} 13... b5 {[%clk 0:02:12.3]} 14.
Kb1 {[%clk 0:01:15.3]} 14... Bb7 {[%clk 0:02:11.2]} 15. a3 {[%clk 0:01:06.2]}
15... Rfc8 {[%clk 0:02:07.6]} 16. Bd3 {[%clk 0:00:56.6]} 16... Qa5 {[%clk
0:02:02.4]} 17. Nb3 {[%clk 0:00:50.7]} 17... Qb6 {[%clk 0:01:59.7]} 18. h5
{[%clk 0:00:35.7]} 18... b4 {[%clk 0:01:47.3]} 19. axb4 {[%clk 0:00:20.5]} 19...
Qxb4 {[%clk 0:01:45.7]} 20. Na2 {[%clk 0:00:21.1]} 20... Qa4 {[%clk 0:01:14.1]}
21. g6 {[%clk 0:00:16.3]} 21... fxg6 {[%clk 0:01:09.7]} 22. hxg6 {[%clk
0:00:16.9]} 22... hxg6 {[%clk 0:01:10.5]} 23. Qg4 {[%clk 0:00:08.4]} 23... Nf8
{[%clk 0:01:11.3]} 24. Qh3 {[%clk 0:00:05]} 24... d5 {[%clk 0:00:53.2]} 25. e5
{[%clk 0:00:03.2]} 25... d4 {[%clk 0:00:51.1]} 26. Rhg1 {[%clk 0:00:02.9]} 26...
Bd5 {[%clk 0:00:52]} 27. Nac1 {[%clk 0:00:03]} 27... Rab8 {[%clk 0:00:50.8]} 28.
Rdf1 {[%clk 0:00:02.9]} 28... Kf7 {[%clk 0:00:37.5]} 29. f5 {[%clk 0:00:03.1]}
29... exf5 {[%clk 0:00:36.1]} 30. Bxf5 {[%clk 0:00:03.8]} 30... gxf5 {[%clk
0:00:35.8]} 31. Qxf5+ {[%clk 0:00:04.7]} 31... Ke8 {[%clk 0:00:35.8]} 32. Rxg7
{[%clk 0:00:06.3]} 32... Qd7 {[%clk 0:00:26.5]} 33. Qh5+ {[%clk 0:00:06.8]}
33... Kd8 {[%clk 0:00:25.1]} 34. Rxf8+ {[%clk 0:00:08.2]} 34... Bxf8 {[%clk
0:00:24]} 35. Rxd7+ {[%clk 0:00:08.9]} 35... Kxd7 {[%clk 0:00:24.2]} 36. Qh7+
{[%clk 0:00:09.5]} 36... Be7 {[%clk 0:00:23.2]} 37. Nxd4 {[%clk 0:00:08.9]}
37... a5 {[%clk 0:00:21]} 38. Qf5+ {[%clk 0:00:07.4]} 38... Ke8 {[%clk 0:00:19]}
39. e6 {[%clk 0:00:08.3]} 39... a4 {[%clk 0:00:18.5]} 40. Qxd5 {[%clk 0:00:08]}
1-0

[Event "*** Titled Tuesday 3|2 Blitz"]
[Site "Chess.com"]
[Date "2017.05.02"]
[Round "5"]
[White "PaulfromSPb"]
[Black "Indianlad"]
[Result "0-1"]
[WhiteElo "2568"]
[BlackElo "2652"]
[TimeControl "180+2"]
[EndTime "14:05:04 PDT"]
[Termination "Indianlad won by resignation"]

1. e4 {[%clk 0:03:02]} 1... e5 {[%clk 0:03:01.2]} 2. Nf3 {[%clk 0:03:02.5]} 2...
Nc6 {[%clk 0:03:03.1]} 3. Bc4 {[%clk 0:03:01.1]} 3... Bc5 {[%clk 0:03:03.3]} 4.
O-O {[%clk 0:03:01.5]} 4... Nf6 {[%clk 0:03:04.2]} 5. d3 {[%clk 0:03:01.5]} 5...
d6 {[%clk 0:03:04.9]} 6. c3 {[%clk 0:03:02.4]} 6... Bb6 {[%clk 0:03:06.3]} 7.
Bb3 {[%clk 0:03:03.2]} 7... h6 {[%clk 0:03:07.2]} 8. Nbd2 {[%clk 0:03:03.7]}
8... O-O {[%clk 0:03:02.9]} 9. h3 {[%clk 0:03:02.9]} 9... Be6 {[%clk 0:03:02.5]}
10. Re1 {[%clk 0:03:03.1]} 10... Re8 {[%clk 0:03:02.9]} 11. Nf1 {[%clk
0:03:03.7]} 11... d5 {[%clk 0:03:02.9]} 12. Ng3 {[%clk 0:03:04.1]} 12... dxe4
{[%clk 0:02:56.8]} 13. dxe4 {[%clk 0:03:04.1]} 13... Qe7 {[%clk 0:02:57.1]} 14.
Qe2 {[%clk 0:03:03.9]} 14... Bxb3 {[%clk 0:02:49]} 15. axb3 {[%clk 0:03:04.4]}
15... Qe6 {[%clk 0:02:47.3]} 16. b4 {[%clk 0:03:04.6]} 16... a5 {[%clk
0:02:43.7]} 17. b5 {[%clk 0:02:21.7]} 17... Ne7 {[%clk 0:02:44.5]} 18. Be3
{[%clk 0:02:17.8]} 18... Bxe3 {[%clk 0:02:41]} 19. Qxe3 {[%clk 0:02:18.8]} 19...
b6 {[%clk 0:02:42.5]} 20. Nd2 {[%clk 0:01:58.2]} 20... Rad8 {[%clk 0:02:42.4]}
21. b3 {[%clk 0:01:54.7]} 21... Qd7 {[%clk 0:02:40.3]} 22. Nf3 {[%clk
0:01:45.3]} 22... Ng6 {[%clk 0:02:21.1]} 23. c4 {[%clk 0:01:44.6]} 23... Qd3
{[%clk 0:02:16.1]} 24. Nf5 {[%clk 0:01:35.8]} 24... Nf4 {[%clk 0:02:07.5]} 25.
Kh2 {[%clk 0:01:12.2]} 25... Qxe3 {[%clk 0:01:57.6]} 26. Rxe3 {[%clk 0:01:12.8]}
26... Nd3 {[%clk 0:01:55.7]} 27. Kg1 {[%clk 0:00:56.2]} 27... Nc5 {[%clk
0:01:53.1]} 28. Rae1 {[%clk 0:00:56.8]} 28... h5 {[%clk 0:01:52.5]} 29. Ng3
{[%clk 0:00:53.6]} 29... g6 {[%clk 0:01:53.4]} 30. Rb1 {[%clk 0:00:42.9]} 30...
Kg7 {[%clk 0:01:48.8]} 31. Kf1 {[%clk 0:00:40.8]} 31... Nh7 {[%clk 0:01:42.2]}
32. Ke2 {[%clk 0:00:36.3]} 32... Nf8 {[%clk 0:01:43.3]} 33. Rd1 {[%clk
0:00:35.5]} 33... Nfe6 {[%clk 0:01:37.2]} 34. Rxd8 {[%clk 0:00:31.5]} 34... Rxd8
{[%clk 0:01:38.6]} 35. Ke1 {[%clk 0:00:25.9]} 35... Nf4 {[%clk 0:01:36]} 36. Kf1
{[%clk 0:00:24.8]} 36... Rd1+ {[%clk 0:01:35.2]} 37. Ne1 {[%clk 0:00:25.8]}
37... Ncd3 {[%clk 0:01:22.1]} 38. f3 {[%clk 0:00:16.7]} 38... h4 {[%clk
0:01:20]} 39. Nh1 {[%clk 0:00:16.8]} 39... Nxe1 {[%clk 0:01:11.9]} 40. Rxe1
{[%clk 0:00:17.2]} 40... Rxe1+ {[%clk 0:01:13.3]} 41. Kxe1 {[%clk 0:00:18]}
41... Nxg2+ {[%clk 0:01:15.2]} 42. Kd2 {[%clk 0:00:19.4]} 42... Nf4 {[%clk
0:01:15]} 43. Nf2 {[%clk 0:00:20.5]} 43... Kf6 {[%clk 0:01:16.5]} 44. Ke3 {[%clk
0:00:21.6]} 44... Ke6 {[%clk 0:01:17]} 45. Kd2 {[%clk 0:00:22.3]} 45... f5
{[%clk 0:01:13.8]} 46. Kc3 {[%clk 0:00:22.6]} 46... Kd6 {[%clk 0:01:15.1]} 47.
Kd2 {[%clk 0:00:23.2]} 47... Kc5 {[%clk 0:01:15.2]} 48. Kc3 {[%clk 0:00:24.5]}
48... c6 {[%clk 0:01:15.8]} 49. bxc6 {[%clk 0:00:22.9]} 49... Kxc6 {[%clk
0:01:17.7]} 50. exf5 {[%clk 0:00:22.8]} 50... gxf5 {[%clk 0:01:18.3]} 51. Kd2
{[%clk 0:00:24]} 51... Kc5 {[%clk 0:01:18.1]} 52. Kc3 {[%clk 0:00:25.3]} 52...
Ne2+ {[%clk 0:01:17.2]} 53. Kd2 {[%clk 0:00:26.2]} 53... Nd4 {[%clk 0:01:17.5]}
54. Nd3+ {[%clk 0:00:27.5]} 54... Kd6 {[%clk 0:01:18.7]} 55. f4 {[%clk
0:00:28.1]} 55... e4 {[%clk 0:01:15]} 56. Ne5 {[%clk 0:00:29.2]} 56... Nf3+
{[%clk 0:01:11.7]} 57. Kc3 {[%clk 0:00:31.1]} 57... Nxe5 {[%clk 0:01:11.5]} 0-1

[Event "*** Titled Tuesday 3|2 Blitz"]
[Site "Chess.com"]
[Date "2017.05.02"]
[Round "5"]
[White "chessking2151"]
[Black "LawrenceTrent"]
[Result "0-1"]
[WhiteElo "2353"]
[BlackElo "2425"]
[TimeControl "180+2"]
[EndTime "14:05:06 PDT"]
[Termination "LawrenceTrent won by resignation"]

1. e4 {[%clk 0:03:02]} 1... c5 {[%clk 0:03:00.5]} 2. Nf3 {[%clk 0:03:02.5]} 2...
d6 {[%clk 0:03:01.8]} 3. d4 {[%clk 0:03:03.3]} 3... cxd4 {[%clk 0:03:03.2]} 4.
Nxd4 {[%clk 0:03:05.2]} 4... Nf6 {[%clk 0:03:04.3]} 5. Nc3 {[%clk 0:03:06.7]}
5... g6 {[%clk 0:03:05.7]} 6. Be3 {[%clk 0:03:06.9]} 6... a6 {[%clk 0:03:07]} 7.
a4 {[%clk 0:03:01.7]} 7... Bg7 {[%clk 0:03:06.6]} 8. f3 {[%clk 0:03:01.7]} 8...
O-O {[%clk 0:03:07.5]} 9. Bc4 {[%clk 0:02:59.1]} 9... Nc6 {[%clk 0:03:03.1]} 10.
O-O {[%clk 0:02:58.2]} 10... Bd7 {[%clk 0:03:01.6]} 11. Nb3 {[%clk 0:02:51]}
11... Na5 {[%clk 0:02:52.8]} 12. Be2 {[%clk 0:02:47.2]} 12... Rc8 {[%clk
0:02:47]} 13. Qd2 {[%clk 0:02:37.3]} 13... Be6 {[%clk 0:02:40.3]} 14. Nd5 {[%clk
0:02:10.4]} 14... Nxb3 {[%clk 0:02:33.4]} 15. cxb3 {[%clk 0:02:09]} 15... Bxd5
{[%clk 0:02:23.5]} 16. exd5 {[%clk 0:02:09.6]} 16... Nd7 {[%clk 0:02:21.1]} 17.
Rac1 {[%clk 0:02:08]} 17... Nc5 {[%clk 0:02:13.5]} 18. Qc2 {[%clk 0:01:50.8]}
18... Qb6 {[%clk 0:02:10.4]} 19. Bc4 {[%clk 0:01:46.1]} 19... Rc7 {[%clk
0:01:58]} 20. Qd2 {[%clk 0:01:38.6]} 20... a5 {[%clk 0:01:50.2]} 21. Bb5 {[%clk
0:01:35.1]} 21... Rfc8 {[%clk 0:01:50.4]} 22. Qf2 {[%clk 0:01:32.5]} 22... Qa7
{[%clk 0:01:47.1]} 23. Rc4 {[%clk 0:01:26.8]} 23... Qb8 {[%clk 0:01:47.7]} 24.
Qc2 {[%clk 0:01:15.1]} 24... Na6 {[%clk 0:01:37.8]} 25. Bb6 {[%clk 0:00:52.4]}
25... Rxc4 {[%clk 0:01:32.3]} 26. bxc4 {[%clk 0:00:46.7]} 26... Nc7 {[%clk
0:01:05.2]} 27. Bd7 {[%clk 0:00:31.6]} 27... Nxd5 {[%clk 0:00:53.3]} 28. Bxc8
{[%clk 0:00:21.9]} 28... Nxb6 {[%clk 0:00:54.4]} 29. Bh3 {[%clk 0:00:22.3]}
29... Qc7 {[%clk 0:00:54.2]} 30. b3 {[%clk 0:00:22.6]} 30... Qc5+ {[%clk
0:00:54.5]} 31. Kh1 {[%clk 0:00:23.9]} 31... d5 {[%clk 0:00:55.8]} 32. Qe2
{[%clk 0:00:18.4]} 32... dxc4 {[%clk 0:00:54.6]} 33. bxc4 {[%clk 0:00:18]} 33...
Nxa4 {[%clk 0:00:47.8]} 34. Bd7 {[%clk 0:00:17.7]} 34... Nc3 {[%clk 0:00:45.5]}
35. Qd3 {[%clk 0:00:17]} 35... Bd4 {[%clk 0:00:39.8]} 36. h3 {[%clk 0:00:16.6]}
36... e6 {[%clk 0:00:36.1]} 37. Rc1 {[%clk 0:00:14.6]} 37... Qe5 {[%clk
0:00:23.5]} 38. f4 {[%clk 0:00:08.5]} 38... Qf6 {[%clk 0:00:19.1]} 39. g3 {[%clk
0:00:06.4]} 39... h5 {[%clk 0:00:19.7]} 40. Kg2 {[%clk 0:00:06.9]} 40... h4
{[%clk 0:00:20.7]} 41. Bb5 {[%clk 0:00:07.4]} 41... hxg3 {[%clk 0:00:21.5]} 42.
Kxg3 {[%clk 0:00:08.4]} 42... a4 {[%clk 0:00:19.2]} 43. Rc2 {[%clk 0:00:09.7]}
43... a3 {[%clk 0:00:20.3]} 44. c5 {[%clk 0:00:07.7]} 44... a2 {[%clk
0:00:20.2]} 45. Rc1 {[%clk 0:00:09]} 45... Nb1 {[%clk 0:00:19.4]} 46. Rxb1
{[%clk 0:00:07.7]} 46... axb1=Q {[%clk 0:00:20.7]} 47. Qxb1 {[%clk 0:00:09.6]}
47... Bxc5 {[%clk 0:00:20.5]} 48. Qc2 {[%clk 0:00:10.6]} 48... Qd4 {[%clk
0:00:21.3]} 49. Be2 {[%clk 0:00:11.5]} 49... Qf2+ {[%clk 0:00:22]} 50. Kg4
{[%clk 0:00:11.7]} 50... Qg2+ {[%clk 0:00:22.3]} 0-1

[Event "*** Titled Tuesday 3|2 Blitz"]
[Site "Chess.com"]
[Date "2017.05.02"]
[Round "5"]
[White "roldieyi"]
[Black "ItalianMachine"]
[Result "1-0"]
[WhiteElo "2095"]
[BlackElo "2191"]
[TimeControl "180+2"]
[EndTime "14:05:07 PDT"]
[Termination "roldieyi won by resignation"]

1. d4 {[%clk 0:02:56.5]} 1... Nf6 {[%clk 0:02:53.8]} 2. Nf3 {[%clk 0:02:57.1]}
2... e6 {[%clk 0:02:50.6]} 3. Bg5 {[%clk 0:02:56.7]} 3... h6 {[%clk 0:02:49]} 4.
Bh4 {[%clk 0:02:57]} 4... d6 {[%clk 0:02:44.2]} 5. e3 {[%clk 0:02:55.3]} 5...
Be7 {[%clk 0:02:43.3]} 6. Nbd2 {[%clk 0:02:54.9]} 6... O-O {[%clk 0:02:41.5]} 7.
Be2 {[%clk 0:02:49.5]} 7... Nc6 {[%clk 0:02:10.8]} 8. c3 {[%clk 0:02:49.7]} 8...
e5 {[%clk 0:02:11.7]} 9. O-O {[%clk 0:02:44.1]} 9... Re8 {[%clk 0:01:56.9]} 10.
h3 {[%clk 0:02:37.3]} 10... Bf5 {[%clk 0:01:30.1]} 11. Bb5 {[%clk 0:02:25.5]}
11... e4 {[%clk 0:00:41.9]} 12. Ne1 {[%clk 0:02:21.8]} 12... a6 {[%clk
0:00:41.6]} 13. Ba4 {[%clk 0:02:21.2]} 13... b5 {[%clk 0:00:41.5]} 14. Bc2
{[%clk 0:02:20.8]} 14... d5 {[%clk 0:00:42.4]} 15. f4 {[%clk 0:02:17.6]} 15...
Nd7 {[%clk 0:00:20.4]} 16. Bf2 {[%clk 0:02:12.5]} 16... Nb6 {[%clk 0:00:18.9]}
17. g4 {[%clk 0:02:09.3]} 17... Bc8 {[%clk 0:00:19.9]} 18. Ng2 {[%clk
0:02:09.9]} 18... h5 {[%clk 0:00:19.3]} 19. Qe2 {[%clk 0:02:00.1]} 19... Qd7
{[%clk 0:00:20.2]} 20. Bd1 {[%clk 0:02:00]} 20... Na5 {[%clk 0:00:17.2]} 21. b3
{[%clk 0:01:58.3]} 21... c5 {[%clk 0:00:14.3]} 22. Qe1 {[%clk 0:01:52.3]} 22...
cxd4 {[%clk 0:00:14.2]} 23. cxd4 {[%clk 0:01:52.6]} 23... Bb4 {[%clk 0:00:12.8]}
24. a3 {[%clk 0:01:45.9]} 24... Bc3 {[%clk 0:00:14]} 25. Rb1 {[%clk 0:01:33.8]}
25... Qe7 {[%clk 0:00:14.5]} 26. Qe2 {[%clk 0:00:44.4]} 26... Qxa3 {[%clk
0:00:15.3]} 27. gxh5 {[%clk 0:00:36.7]} 27... Qa2 {[%clk 0:00:16.4]} 28. Be1
{[%clk 0:00:37.2]} 28... Bxh3 {[%clk 0:00:14.2]} 29. Rc1 {[%clk 0:00:22.1]}
29... b4 {[%clk 0:00:14.5]} 30. Kh2 {[%clk 0:00:20]} 30... Bf5 {[%clk
0:00:14.7]} 31. Nh4 {[%clk 0:00:20.4]} 31... Bh7 {[%clk 0:00:15.6]} 32. Rg1
{[%clk 0:00:20.9]} 32... Rad8 {[%clk 0:00:15]} 33. Qg2 {[%clk 0:00:20.5]} 33...
g6 {[%clk 0:00:15.3]} 34. hxg6 {[%clk 0:00:21.3]} 34... fxg6 {[%clk 0:00:16.4]}
35. Nxg6 {[%clk 0:00:22.5]} 35... Kf7 {[%clk 0:00:17.9]} 36. Ne5+ {[%clk
0:00:22.3]} 36... Ke6 {[%clk 0:00:19.4]} 37. Bg4+ {[%clk 0:00:21.9]} 37... Kd6
{[%clk 0:00:20.2]} 38. Nxe4+ {[%clk 0:00:19.9]} 38... Bxe4 {[%clk 0:00:20.1]}
39. Qxa2 {[%clk 0:00:21.8]} 39... Rh8+ {[%clk 0:00:21.6]} 40. Kg3 {[%clk
0:00:22.8]} 40... Nc6 {[%clk 0:00:19.3]} 41. Qxa6 {[%clk 0:00:22.9]} 41... Bxe1+
{[%clk 0:00:19.2]} 42. Rgxe1 {[%clk 0:00:23]} 1-0

[Event "*** Titled Tuesday 3|2 Blitz"]
[Site "Chess.com"]
[Date "2017.05.02"]
[Round "5"]
[White "1lec"]
[Black "PowerThinking2650"]
[Result "0-1"]
[WhiteElo "2065"]
[BlackElo "2192"]
[TimeControl "180+2"]
[EndTime "14:05:07 PDT"]
[Termination "PowerThinking2650 won by checkmate"]

1. e4 {[%clk 0:03:02]} 1... e5 {[%clk 0:02:59.5]} 2. Nf3 {[%clk 0:03:02.7]} 2...
Nc6 {[%clk 0:03:00.6]} 3. Bb5 {[%clk 0:03:04.2]} 3... a6 {[%clk 0:03:00.6]} 4.
Ba4 {[%clk 0:03:05.2]} 4... Nf6 {[%clk 0:03:00.7]} 5. d3 {[%clk 0:03:06]} 5...
b5 {[%clk 0:03:01.1]} 6. Bb3 {[%clk 0:03:07.1]} 6... Be7 {[%clk 0:03:02.7]} 7.
O-O {[%clk 0:03:07.6]} 7... O-O {[%clk 0:03:04.3]} 8. a4 {[%clk 0:03:08.7]} 8...
Bb7 {[%clk 0:03:02]} 9. Nc3 {[%clk 0:03:08.4]} 9... b4 {[%clk 0:02:55.6]} 10.
Ne2 {[%clk 0:03:09.3]} 10... d6 {[%clk 0:02:54.7]} 11. Ng3 {[%clk 0:03:09.8]}
11... Na5 {[%clk 0:02:54.5]} 12. Ba2 {[%clk 0:03:04.5]} 12... b3 {[%clk
0:02:48.8]} 13. cxb3 {[%clk 0:02:59.4]} 13... c5 {[%clk 0:02:48.9]} 14. Bd2
{[%clk 0:02:39.1]} 14... Nc6 {[%clk 0:02:49.4]} 15. b4 {[%clk 0:02:30.7]} 15...
Nxb4 {[%clk 0:02:44.5]} 16. Bc4 {[%clk 0:02:29.7]} 16... a5 {[%clk 0:02:42.1]}
17. Nf5 {[%clk 0:02:20.1]} 17... Ba6 {[%clk 0:02:31.8]} 18. Qb3 {[%clk
0:01:43.6]} 18... Rb8 {[%clk 0:02:20.7]} 19. Ng5 {[%clk 0:00:59.7]} 19... Bxc4
{[%clk 0:02:08.8]} 20. Qxc4 {[%clk 0:01:00.6]} 20... d5 {[%clk 0:01:44.3]} 21.
exd5 {[%clk 0:00:38.5]} 21... Nfxd5 {[%clk 0:01:44.6]} 22. Nxe7+ {[%clk
0:00:19.3]} 22... Qxe7 {[%clk 0:01:44.9]} 23. Ne4 {[%clk 0:00:20.5]} 23... Rfc8
{[%clk 0:01:33.1]} 24. Nc3 {[%clk 0:00:14]} 24... Rd8 {[%clk 0:00:48.8]} 25.
Nxd5 {[%clk 0:00:09.2]} 25... Nxd5 {[%clk 0:00:47.2]} 26. Bxa5 {[%clk
0:00:09.5]} 26... Rd7 {[%clk 0:00:36.2]} 27. Bc3 {[%clk 0:00:10.5]} 27... Nf4
{[%clk 0:00:34.2]} 28. Qe4 {[%clk 0:00:06.8]} 28... Nxd3 {[%clk 0:00:28.9]} 29.
Rfd1 {[%clk 0:00:07.9]} 29... Rbd8 {[%clk 0:00:21.4]} 30. a5 {[%clk 0:00:05.4]}
30... g6 {[%clk 0:00:18.6]} 31. a6 {[%clk 0:00:05.8]} 31... f5 {[%clk
0:00:07.2]} 32. Qc4+ {[%clk 0:00:05.7]} 32... Kg7 {[%clk 0:00:08.4]} 33. f4
{[%clk 0:00:04.6]} 33... Kh6 {[%clk 0:00:06.4]} 34. fxe5 {[%clk 0:00:04.8]}
34... Qg5 {[%clk 0:00:04.6]} 35. Bd2 {[%clk 0:00:03.9]} 35... f4 {[%clk
0:00:02.9]} 36. a7 {[%clk 0:00:05.1]} 36... Nxe5 {[%clk 0:00:03.9]} 37. Qe4
{[%clk 0:00:05.8]} 37... Rxd2 {[%clk 0:00:04.2]} 38. Rxd2 {[%clk 0:00:06.8]}
38... Rxd2 {[%clk 0:00:05]} 39. a8=Q {[%clk 0:00:08.3]} 39... f3 {[%clk
0:00:03.5]} 40. Qf8+ {[%clk 0:00:09.2]} 40... Kh5 {[%clk 0:00:04.4]} 41. g3
{[%clk 0:00:05.3]} 41... f2+ {[%clk 0:00:04.8]} 42. Kf1 {[%clk 0:00:05.4]} 42...
Ng4 {[%clk 0:00:05.3]} 43. Qff4 {[%clk 0:00:04.9]} 43... Nxh2+ {[%clk
0:00:05.1]} 44. Kg2 {[%clk 0:00:06.4]} 44... Qxf4 {[%clk 0:00:05.7]} 45. Qxf4
{[%clk 0:00:07.1]} 45... f1=Q# {[%clk 0:00:07]} 0-1

[Event "*** Titled Tuesday 3|2 Blitz"]
[Site "Chess.com"]
[Date "2017.05.02"]
[Round "5"]
[White "evgenyermolaev"]
[Black "Marreuh"]
[Result "1-0"]
[WhiteElo "2351"]
[BlackElo "2101"]
[TimeControl "180+2"]
[EndTime "14:05:23 PDT"]
[Termination "evgenyermolaev won by resignation"]

1. e4 {[%clk 0:03:02]} 1... c5 {[%clk 0:02:59.4]} 2. Nf3 {[%clk 0:03:02.7]} 2...
d6 {[%clk 0:02:58.9]} 3. d4 {[%clk 0:03:03.7]} 3... cxd4 {[%clk 0:03:00.8]} 4.
Nxd4 {[%clk 0:03:05.2]} 4... Nf6 {[%clk 0:03:02.3]} 5. Nc3 {[%clk 0:03:06.7]}
5... a6 {[%clk 0:03:03.9]} 6. Be3 {[%clk 0:03:08]} 6... Ng4 {[%clk 0:03:02.6]}
7. Bg5 {[%clk 0:03:08.1]} 7... h6 {[%clk 0:03:04]} 8. Bh4 {[%clk 0:03:09.3]}
8... g5 {[%clk 0:03:05.5]} 9. Bg3 {[%clk 0:03:10.7]} 9... Bg7 {[%clk 0:03:06.3]}
10. Be2 {[%clk 0:03:11.2]} 10... h5 {[%clk 0:03:06.8]} 11. Bxg4 {[%clk 0:03:12]}
11... hxg4 {[%clk 0:03:08.2]} 12. Qd2 {[%clk 0:03:04.6]} 12... Nc6 {[%clk
0:02:44.5]} 13. Nf5 {[%clk 0:02:25.6]} 13... Bf6 {[%clk 0:02:41.2]} 14. Nd5
{[%clk 0:02:12.4]} 14... Bxb2 {[%clk 0:02:06.8]} 15. Rb1 {[%clk 0:02:11.7]}
15... Be5 {[%clk 0:02:07.7]} 16. Bxe5 {[%clk 0:01:10.2]} 16... dxe5 {[%clk
0:02:09.6]} 17. Qxg5 {[%clk 0:01:07]} 17... Bxf5 {[%clk 0:01:53.4]} 18. Qxf5
{[%clk 0:01:07.8]} 18... e6 {[%clk 0:01:47.4]} 19. Qf6 {[%clk 0:01:08.4]} 19...
Qxf6 {[%clk 0:01:03.9]} 20. Nxf6+ {[%clk 0:01:08.7]} 20... Ke7 {[%clk
0:01:05.4]} 21. Nxg4 {[%clk 0:01:09.5]} 21... b5 {[%clk 0:01:05.6]} 22. O-O
{[%clk 0:00:48.8]} 22... f5 {[%clk 0:01:01.8]} 23. Ne3 {[%clk 0:00:46.8]} 23...
fxe4 {[%clk 0:00:55.1]} 24. Rfe1 {[%clk 0:00:41]} 24... Nd4 {[%clk 0:00:52.4]}
25. c3 {[%clk 0:00:38.1]} 25... Nf5 {[%clk 0:00:51.4]} 26. Ng4 {[%clk
0:00:30.9]} 26... Nd6 {[%clk 0:00:51.1]} 27. Nxe5 {[%clk 0:00:29.4]} 27... Rhg8
{[%clk 0:00:52.5]} 28. g3 {[%clk 0:00:12.7]} 28... Rac8 {[%clk 0:00:52.5]} 29.
Rbc1 {[%clk 0:00:05.6]} 29... Rc5 {[%clk 0:00:49.7]} 30. f4 {[%clk 0:00:06.4]}
30... exf3 {[%clk 0:00:45.1]} 31. Nxf3 {[%clk 0:00:08.3]} 31... Rgc8 {[%clk
0:00:41]} 32. Ne5 {[%clk 0:00:10.2]} 32... Rxc3 {[%clk 0:00:38.4]} 33. Rcd1
{[%clk 0:00:06]} 33... Rc2 {[%clk 0:00:32.1]} 34. Ng6+ {[%clk 0:00:04.7]} 34...
Kd7 {[%clk 0:00:32.6]} 35. Nf4 {[%clk 0:00:05.5]} 35... Re8 {[%clk 0:00:26.3]}
36. h4 {[%clk 0:00:05.2]} 36... Rxa2 {[%clk 0:00:25.7]} 37. h5 {[%clk
0:00:05.7]} 37... Ra3 {[%clk 0:00:26]} 38. Kg2 {[%clk 0:00:06.2]} 38... Rg8
{[%clk 0:00:26.9]} 39. Rd3 {[%clk 0:00:04.5]} 39... Rxd3 {[%clk 0:00:27]} 40.
Nxd3 {[%clk 0:00:05.9]} 40... Nf5 {[%clk 0:00:28.5]} 41. Nc5+ {[%clk 0:00:03.5]}
41... Kc6 {[%clk 0:00:21]} 42. Ne4 {[%clk 0:00:04.6]} 42... Rh8 {[%clk
0:00:16.4]} 43. g4 {[%clk 0:00:05.3]} 43... Rg8 {[%clk 0:00:17.7]} 44. Kh3
{[%clk 0:00:05.2]} 44... Nh6 {[%clk 0:00:18.2]} 45. g5 {[%clk 0:00:05.9]} 45...
Nf5 {[%clk 0:00:19.6]} 46. Rc1+ {[%clk 0:00:06.2]} 46... Kd7 {[%clk 0:00:18.8]}
47. Nf6+ {[%clk 0:00:07.1]} 47... Ke7 {[%clk 0:00:20.7]} 48. Nxg8+ {[%clk
0:00:08.2]} 48... Kf8 {[%clk 0:00:22.6]} 49. Nh6 {[%clk 0:00:09.4]} 49... Kg7
{[%clk 0:00:23.9]} 50. Nxf5+ {[%clk 0:00:10.2]} 50... exf5 {[%clk 0:00:25.8]}
1-0